bitfinex/quotes_BTCUSD_20250522
["timestamp","ask_amount","ask_price","bid_price","bid_amount"]
[1747878942917,0.62555157,109790.0,109780.0,0.44018311]
[1747878943703,0.62555157,109790.0,109780.0,0.43718311]
[1747878943942,0.71958514,109790.0,109780.0,0.43418311]
[1747878944147,0.71958514,109790.0,109780.0,0.00114954]
[1747878946972,0.98510499,109790.0,109780.0,0.00114954]
[1747878947336,0.71958514,109790.0,109780.0,0.00114954]
[1747878947549,0.72821804,109790.0,109780.0,0.00114954]
[1747878947916,0.29394071,109790.0,109780.0,0.00114954]
[1747878948115,0.98230071,109790.0,109780.0,0.00114954]
[1747878948314,0.98630071,109790.0,109780.0,0.00114954]
[1747878948522,0.98630071,109790.0,109780.0,0.00014954]
[1747878948922,0.99730071,109790.0,109780.0,0.00114954]
[1747878950011,1.26282056,109790.0,109780.0,0.00114954]
[1747878951574,1.26292056,109790.0,109780.0,0.00114954]
[1747878952173,0.99740071,109790.0,109780.0,0.00114954]
[1747878952607,1.26292056,109790.0,109780.0,0.00114954]
[1747878954585,0.57456056,109790.0,109780.0,0.00114954]
[1747878954760,0.30904071,109790.0,109780.0,0.00114954]
[1747878954965,0.98648781,109790.0,109780.0,0.00114954]
[1747878955337,0.99512071,109790.0,109780.0,0.00114954]
[1747878957248,0.30904071,109790.0,109780.0,0.00114954]
[1747878957447,0.99512071,109790.0,109780.0,0.00114954]
[1747878957650,0.98648781,109790.0,109780.0,0.00114954]
[1747878958686,0.30040781,109790.0,109780.0,0.26666939]
[1747878958903,0.98648781,109790.0,109780.0,0.02872746]
[1747878959102,0.89245424,109790.0,109780.0,0.02872746]
[1747878960348,0.20637424,109790.0,109780.0,0.22001912]
[1747878960575,0.89245424,109790.0,109780.0,0.29424731]
[1747878960748,0.90156187,109790.0,109780.0,0.49464768]
[1747878960961,0.91066983,109790.0,109780.0,0.49464768]
[1747878961197,0.91066983,109790.0,109780.0,0.49464785]
[1747878961396,0.22458983,109790.0,109780.0,0.23823687]
[1747878961603,0.91066983,109790.0,109780.0,0.229128]
[1747878962156,0.91066983,109790.0,109780.0,0.02872746]
[1747878962157,0.90156212,109790.0,109780.0,0.02872746]
[1747878962545,0.89245416,109790.0,109780.0,0.02872746]
[1747878963396,0.98648773,109790.0,109780.0,0.00114954]
[1747878965480,0.30040773,109790.0,109780.0,0.00114954]
[1747878965683,0.98648773,109790.0,109780.0,0.00114954]
[1747878966837,0.30040773,109790.0,109780.0,0.00114954]
[1747878967056,0.98648773,109790.0,109780.0,0.00114954]
[1747878978197,0.98648773,109790.0,109780.0,0.03272076]
[1747878978512,0.98648773,109790.0,109780.0,0.08440847]
[1747878978740,1.37996773,109790.0,109780.0,0.08440847]
[1747878979270,0.69388773,109790.0,109780.0,0.08440847]
[1747878979478,1.28413416,109790.0,109780.0,0.08440847]
[1747878980249,1.28413416,109790.0,109780.0,0.53211086]
[1747878980250,1.01085416,109790.0,109780.0,0.53211086]
[1747878980461,0.40858,109790.0,109780.0,0.56854601]
[1747878980666,0.40858,109790.0,109780.0,0.90854601]
[1747878980667,1.09286,109790.0,109780.0,0.90854601]
[1747878981075,1.10196763,109790.0,109780.0,0.90854601]
[1747878981615,0.39758,109790.0,109780.0,0.90754601]
[1747878981821,1.08692763,109790.0,109780.0,0.90754601]
[1747878982259,1.08692763,109790.0,109780.0,0.90954601]
[1747878982443,0.80454,109790.0,109780.0,0.90954601]
[1747878982691,0.39358,109790.0,109780.0,0.90954601]
[1747878983117,0.0001,109790.0,109780.0,1.01812043]
[1747878983325,0.39348,109820.0,109810.0,0.54945167]
[1747878983528,0.39348,109820.0,109810.0,0.88995162]
[1747878983707,0.39348,109820.0,109810.0,0.99852604]
[1747878983944,0.66676,109820.0,109810.0,0.99852604]
[1747878985260,0.66676,109820.0,109810.0,0.73300619]
[1747878985438,0.66676,109820.0,109810.0,0.99852604]
[1747878985868,0.42916871,109830.0,109810.0,0.98431319]
[1747878986069,0.036418,109830.0,109820.0,0.47495245]
[1747878986275,0.80276553,109830.0,109820.0,0.5598808]
[1747878986483,0.9757609,109830.0,109820.0,0.56898602]
[1747878986687,0.7936613,109830.0,109820.0,0.56898602]
[1747878987264,0.7946613,109830.0,109820.0,0.57213556]
[1747878987466,0.78555649,109830.0,109820.0,0.57213556]
[1747878987668,0.001,109830.0,109820.0,0.57213556]
[1747878987868,0.29240854,109830.0,109820.0,1.32033556]
[1747878988084,0.3015131,109830.0,109820.0,1.32033556]
[1747878988237,0.31061783,109830.0,109820.0,1.32333556]
[1747878988906,0.31061783,109830.0,109820.0,1.31423034]
[1747878989106,0.31061783,109830.0,109820.0,1.32333556]
[1747878989545,0.31972272,109830.0,109820.0,1.32333556]
[1747878989772,0.31972272,109830.0,109820.0,1.05781571]
[1747878990001,0.31061783,109830.0,109820.0,1.32333556]
[1747878991745,0.49271743,109830.0,109820.0,1.31423034]
[1747878991940,0.50182232,109830.0,109820.0,1.0578158]
[1747878992135,0.31061783,109830.0,109820.0,1.0578158]
[1747878992349,0.31972264,109830.0,109820.0,1.33244087]
[1747878992557,0.31061783,109830.0,109820.0,1.33244087]
[1747878994138,0.31972264,109830.0,109820.0,1.33244087]
[1747878994352,0.54759186,109830.0,109820.0,0.00614954]
[1747878994579,0.64162543,109830.0,109820.0,0.00614954]
[1747878994793,0.90714528,109830.0,109820.0,0.00614954]
[1747878995218,1.24714528,109830.0,109820.0,0.00614954]
[1747878995641,6.29614528,109830.0,109820.0,0.00014954]
[1747878995855,6.32268613,109830.0,109820.0,0.00214954]
[1747878996080,6.31268613,109830.0,109820.0,0.00314954]
[1747878996333,6.61268613,109830.0,109820.0,0.00214954]
[1747878996568,6.61168613,109830.0,109820.0,0.00014954]
[1747878996795,0.19130901,109770.0,109760.0,0.19132591]
[1747878997015,0.87534901,109770.0,109760.0,0.60857539]
[1747878998095,0.87534901,109770.0,109760.0,0.87409524]
[1747878999059,0.87634901,109770.0,109760.0,0.87709524]
[1747878999264,0.87634901,109770.0,109760.0,0.88620561]
[1747878999647,0.88545871,109770.0,109760.0,0.88620561]
[1747879000153,0.88545871,109770.0,109760.0,0.91824842]
[1747879000355,0.71236952,109770.0,109760.0,0.9303587]
[1747879001823,0.68504,109770.0,109760.0,0.9394689]
[1747879002226,0.68512,109770.0,109760.0,1.3476689]
[1747879002532,0.69422929,109770.0,109760.0,1.3476689]
[1747879002791,0.71244853,109770.0,109760.0,1.3476689]
[1747879003407,0.70333883,109770.0,109760.0,1.3476689]
[1747879003607,0.71244862,109770.0,109760.0,1.3476689]
[1747879004085,0.70333883,109770.0,109760.0,1.3476689]
[1747879004223,0.71244853,109770.0,109760.0,1.3476689]
[1747879005264,0.69422929,109770.0,109760.0,1.3476689]
[1747879005484,0.70333883,109770.0,109760.0,1.3476689]
[1747879005933,0.72155832,109770.0,109760.0,1.08214905]
[1747879006163,0.72155832,109770.0,109760.0,1.3476689]
[1747879008090,0.03743832,109770.0,109760.0,1.3476689]
[1747879009102,0.72167832,109770.0,109760.0,1.3476689]
[1747879009334,0.69434929,109770.0,109760.0,1.3476689]
[1747879009580,0.71256836,109770.0,109760.0,1.3476689]
[1747879009775,0.72167815,109770.0,109760.0,1.3476689]
[1747879011017,0.90387787,109770.0,109760.0,1.32033813]
[1747879011228,0.90387787,109770.0,109760.0,1.32944841]
[1747879011343,0.91298782,109770.0,109760.0,1.32944841]
[1747879011573,0.90387787,109770.0,109760.0,1.33855861]
[1747879012018,0.91298782,109770.0,109760.0,1.3294485]
[1747879012815,0.90387787,109770.0,109760.0,1.3294485]
[1747879013026,1.05277509,109770.0,109760.0,0.03819242]
[1747879013256,0.01921933,109770.0,109760.0,0.50414916]
[1747879013466,0.20141847,109770.0,109760.0,0.30371227]
[1747879013727,0.6876,109770.0,109760.0,0.51325936]
[1747879013916,0.69670921,109770.0,109760.0,0.58463032]
[1747879014299,0.70581858,109770.0,109760.0,0.58463032]
[1747879014476,0.01921858,109770.0,109760.0,0.58463032]
[1747879014676,0.001,109770.0,109760.0,0.92463032]
[1747879014878,0.6876,109770.0,109760.0,1.59835017]
[1747879015294,0.6876,109770.0,109760.0,1.33283032]
[1747879017300,0.001,109770.0,109760.0,1.33283032]
[1747879017511,0.6876,109770.0,109760.0,1.33283032]
[1747879018323,0.001,109770.0,109760.0,1.70692459]
[1747879018530,0.6876,109770.0,109760.0,1.70692459]
[1747879019179,0.41432,109770.0,109760.0,1.29872459]
[1747879019376,0.6876,109770.0,109760.0,1.70692459]
[1747879019793,0.001,109770.0,109760.0,1.70692459]
[1747879020059,0.27428,109770.0,109760.0,1.70692459]
[1747879021203,0.8068,109780.0,109770.0,0.22406885]
[1747879021411,0.62148404,109780.0,109770.0,0.67765584]
[1747879022076,0.62148404,109780.0,109770.0,0.41213599]
[1747879022291,0.62148404,109780.0,109770.0,0.67765584]
[1747879022712,0.62148404,109780.0,109770.0,0.5099105]
[1747879022915,0.62148404,109780.0,109770.0,0.53723936]
[1747879023124,0.62148404,109780.0,109770.0,0.54023936]
[1747879024104,0.62148404,109780.0,109770.0,0.54123936]
[1747879024510,0.62148404,109780.0,109770.0,0.54023936]
[1747879024906,0.34820404,109780.0,109770.0,0.54323936]
[1747879025135,0.41328,109790.0,109780.0,0.54950891]
[1747879025333,0.68652,109790.0,109780.0,0.90906233]
[1747879026208,0.70473534,109790.0,109780.0,0.90906233]
[1747879026608,0.70573534,109790.0,109780.0,0.91206233]
[1747879026908,0.69662763,109790.0,109780.0,0.91406233]
[1747879028255,0.69662763,109790.0,109780.0,1.43083675]
[1747879028256,0.001,109790.0,109780.0,1.43083675]
[1747879028468,0.27424,109790.0,109780.0,1.6963566]
[1747879028942,0.001,109790.0,109780.0,1.43083675]
[1747879029198,0.001,109790.0,109780.0,1.6963566]
[1747879029434,0.001,109790.0,109780.0,1.43083675]
[1747879029669,0.27324,109800.0,109790.0,0.54948983]
[1747879029879,0.27324,109800.0,109790.0,1.34413943]
[1747879030518,0.40258506,109820.0,109810.0,0.54945167]
[1747879030725,1.08902522,109820.0,109810.0,0.81497152]
[1747879031810,0.66668,109820.0,109810.0,0.9091547]
[1747879032019,0.51463624,109830.0,109820.0,0.5494326]
[1747879032020,0.07408272,109830.0,109820.0,0.5494326]
[1747879032234,0.76962695,109830.0,109820.0,0.88632341]
[1747879032446,0.76052272,109830.0,109820.0,0.88632341]
[1747879032652,0.76962703,109830.0,109820.0,0.88632341]
[1747879032866,0.77873151,109830.0,109820.0,0.88632341]
[1747879033111,0.96083144,109830.0,109820.0,0.86811272]
[1747879033294,0.96083144,109830.0,109820.0,0.41137096]
[1747879033295,0.95172713,109830.0,109820.0,0.41137096]
[1747879033510,0.95172713,109830.0,109820.0,0.59348715]
[1747879033511,0.76052272,109830.0,109820.0,0.59348715]
[1747879033726,0.96993641,109830.0,109820.0,0.88632375]
[1747879034156,0.97904072,109830.0,109820.0,0.87721836]
[1747879034393,0.97904072,109830.0,109820.0,0.88632383]
[1747879035050,0.97904072,109830.0,109820.0,0.87721836]
[1747879035271,0.97904072,109830.0,109820.0,1.29452383]
[1747879036183,0.77873159,109830.0,109820.0,1.30362905]
[1747879036390,0.71471327,109830.0,109820.0,1.30362905]
[1747879036612,0.6874,109830.0,109820.0,1.30362905]
[1747879036826,0.70560871,109830.0,109820.0,1.30362905]
[1747879037253,0.69650423,109830.0,109820.0,1.30362905]
[1747879037874,0.70560863,109830.0,109820.0,1.30362905]
[1747879038498,0.001,109830.0,109820.0,1.39766262]
[1747879038738,0.41416,109830.0,109820.0,1.41220347]
[1747879038944,0.68732,109830.0,109820.0,1.41220347]
[1747879039460,0.001,109830.0,109820.0,1.41220347]
[1747879039910,0.27416,109830.0,109820.0,2.09660347]
[1747879040524,0.27416,109830.0,109820.0,1.83108362]
[1747879040728,0.27416,109830.0,109820.0,2.09660347]
[1747879040948,0.27516,109830.0,109820.0,2.10360347]
[1747879041075,0.27516,109830.0,109820.0,2.10860347]
[1747879042506,0.27416,109830.0,109820.0,2.10160347]
[1747879042919,0.27516,109830.0,109820.0,2.10460347]
[1747879043061,0.27516,109830.0,109820.0,2.09960347]
[1747879043472,0.27516,109830.0,109820.0,2.10160347]
[1747879043892,0.53944663,109830.0,109820.0,0.005]
[1747879044069,0.95891169,109830.0,109820.0,0.005]
[1747879044278,0.95791169,109830.0,109820.0,0.0141058]
[1747879044474,0.95791169,109830.0,109820.0,0.345]
[1747879044884,0.27439169,109830.0,109820.0,0.345]
[1747879045147,0.27439169,109830.0,109820.0,0.40137074]
[1747879045579,0.27439169,109830.0,109820.0,0.41047646]
[1747879045779,0.27439169,109830.0,109820.0,0.40137074]
[1747879045917,0.27439169,109830.0,109820.0,0.41047654]
[1747879046121,0.95783169,109830.0,109820.0,0.41958226]
[1747879046919,0.95783169,109830.0,109820.0,0.41047654]
[1747879047563,0.95783169,109830.0,109820.0,0.41958226]
[1747879048435,0.88474897,109830.0,109820.0,0.41958226]
[1747879049993,0.88474897,109830.0,109820.0,0.41047654]
[1747879050207,0.88474897,109830.0,109820.0,0.4286879]
[1747879050406,0.88474897,109830.0,109820.0,0.41958226]
[1747879051192,0.88474897,109830.0,109820.0,0.40137074]
[1747879051398,0.001,109830.0,109820.0,1.40220341]
[1747879051619,0.001,109830.0,109820.0,0.99400341]
[1747879051841,0.001,109830.0,109820.0,1.25952326]
[1747879052070,0.001,109830.0,109820.0,0.99400341]
[1747879052607,0.001,109830.0,109820.0,1.25952326]
[1747879053357,0.08218364,109870.0,109860.0,0.2093566]
[1747879053563,0.77472497,109870.0,109860.0,0.86402953]
[1747879053982,0.77472488,109870.0,109860.0,0.86402953]
[1747879054193,0.53066245,109910.0,109880.0,0.00910075]
[1747879054194,0.26421428,109890.0,109880.0,0.00910075]
[1747879054400,0.94765428,109890.0,109880.0,0.46573817]
[1747879054602,0.94815226,109890.0,109880.0,0.36910951]
[1747879054803,0.94815226,109890.0,109880.0,0.11269041]
[1747879055007,0.49300037,109890.0,109880.0,0.31290824]
[1747879055227,0.7570207,109890.0,109880.0,0.58752842]
[1747879055435,0.80251848,109890.0,109880.0,0.57842817]
[1747879055644,0.9845194,109890.0,109880.0,0.09448883]
[1747879055817,0.97542006,109890.0,109880.0,0.21809873]
[1747879056056,0.97542006,109890.0,109880.0,0.23629981]
[1747879056259,0.96632047,109890.0,109880.0,0.23629981]
[1747879056671,0.96628047,109890.0,109880.0,0.22719931]
[1747879056819,0.96728047,109890.0,109880.0,0.22719931]
[1747879057023,0.9581808,109890.0,109880.0,0.21809873]
[1747879057229,0.9581408,109890.0,109880.0,0.22719931]
[1747879057409,0.9581408,109890.0,109880.0,0.21809873]
[1747879057611,0.9591408,109890.0,109880.0,0.21809873]
[1747879058410,0.9591408,109890.0,109880.0,0.24017444]
[1747879058602,0.94094088,109890.0,109880.0,0.02698132]
[1747879058785,0.94094088,109890.0,109880.0,0.03608207]
[1747879058988,0.94094088,109890.0,109880.0,0.00910075]
[1747879059144,0.94094088,109890.0,109880.0,0.44455145]
[1747879059349,0.94094088,109890.0,109880.0,0.41730075]
[1747879059802,0.86785816,109890.0,109880.0,0.68944336]
[1747879060147,0.86785816,109890.0,109880.0,0.69854403]
[1747879061774,0.603878,109890.0,109880.0,0.69854403]
[1747879061983,0.88601759,109890.0,109880.0,0.9822648]
[1747879062159,0.89511751,109890.0,109880.0,0.97316446]
[1747879062365,0.70401691,109890.0,109880.0,0.98226488]
[1747879062564,0.44007658,109890.0,109880.0,0.99136522]
[1747879062746,0.72221642,109890.0,109880.0,0.99136472]
[1747879063075,0.44917642,109890.0,109880.0,0.98226447]
[1747879063265,0.21179685,109890.0,109880.0,0.97316413]
[1747879063494,0.90413685,109890.0,109880.0,0.97316413]
[1747879063679,0.90413685,109890.0,109880.0,0.97316421]
[1747879064080,0.89503751,109890.0,109880.0,0.9823146]
[1747879064262,0.89503751,109890.0,109880.0,0.9914151]
[1747879064467,0.89503751,109890.0,109880.0,0.9823146]
[1747879064633,0.89503751,109890.0,109880.0,0.99141518]
[1747879065264,0.89503751,109890.0,109880.0,0.58321518]
[1747879065713,0.89503751,109890.0,109880.0,0.59231568]
[1747879067221,0.89503751,109890.0,109880.0,0.58321518]
[1747879067888,0.89503751,109890.0,109880.0,0.59231568]
[1747879068094,0.89503751,109890.0,109880.0,0.58321518]
[1747879068300,0.89503751,109890.0,109880.0,0.59231568]
[1747879069415,0.89503751,109890.0,109880.0,0.58321518]
[1747879070060,0.27549798,109890.0,109880.0,0.60141593]
[1747879070537,0.00249798,109890.0,109880.0,0.94141593]
[1747879070710,0.27549798,109890.0,109880.0,0.94141593]
[1747879070914,0.27549798,109890.0,109880.0,1.45819035]
[1747879071368,0.29369675,109890.0,109880.0,1.45819035]
[1747879071562,0.30279642,109890.0,109880.0,1.45819035]
[1747879071906,0.29369675,109890.0,109880.0,1.45819035]
[1747879072079,0.28459724,109890.0,109880.0,1.45819035]
[1747879072299,0.30279609,109890.0,109880.0,1.45819035]
[1747879072678,0.29369658,109890.0,109880.0,1.45819035]
[1747879072892,0.28459724,109890.0,109880.0,1.45819035]
[1747879078264,0.29369666,109890.0,109880.0,1.45819035]
[1747879078467,0.28459724,109890.0,109880.0,1.45819035]
[1747879083414,0.29369658,109890.0,109880.0,1.45819035]
[1747879084425,0.28459724,109890.0,109880.0,1.45819035]
[1747879089107,0.27549798,109890.0,109880.0,1.45819035]
[1747879089317,0.28459732,109890.0,109880.0,1.45819035]
[1747879089942,0.27549798,109890.0,109880.0,1.45819035]
[1747879090183,0.28459724,109890.0,109880.0,1.45819035]
[1747879091276,0.48479743,109890.0,109880.0,0.77555147]
[1747879091963,0.48479743,109890.0,109880.0,0.78465222]
[1747879092211,0.00249798,109890.0,109880.0,1.25039014]
[1747879092422,0.29365675,109890.0,109880.0,1.25949039]
[1747879092627,0.29365675,109890.0,109880.0,1.25039014]
[1747879092799,0.30275642,109890.0,109880.0,1.35352405]
[1747879093008,0.70301675,109890.0,109880.0,1.35352405]
[1747879093214,0.71211642,109890.0,109880.0,1.35352405]
[1747879093822,0.8941166,109890.0,109880.0,1.35352405]
[1747879094467,0.88501693,109890.0,109880.0,1.34442371]
[1747879094672,0.88501693,109890.0,109880.0,1.35352405]
[1747879094912,0.41185798,109890.0,109880.0,1.3626243]
[1747879095275,0.70301675,109890.0,109880.0,1.3626243]
[1747879095655,0.70301666,109890.0,109880.0,1.35352405]
[1747879095838,0.70301666,109890.0,109880.0,0.98617258]
[1747879096412,0.70301666,109890.0,109880.0,0.99527283]
[1747879096614,0.69391724,109890.0,109880.0,0.99527283]
[1747879096814,0.70301666,109890.0,109880.0,0.99527283]
[1747879097631,0.29365666,109890.0,109880.0,0.99527283]
[1747879097877,0.29365666,109890.0,109880.0,1.01879119]
[1747879098282,0.29365658,109890.0,109880.0,1.01879119]
[1747879099193,0.27545798,109890.0,109880.0,1.35879119]
[1747879099412,0.28455732,109890.0,109880.0,1.35879119]
[1747879100440,0.28455724,109890.0,109880.0,1.35879119]
[1747879101021,0.29365666,109890.0,109880.0,1.35879119]
[1747879101755,0.28455724,109890.0,109880.0,1.35403866]
[1747879102156,0.29365658,109890.0,109880.0,1.35403866]
[1747879106864,0.27545798,109890.0,109880.0,1.35403866]
[1747879108069,0.28455732,109890.0,109880.0,1.35403866]
[1747879109623,0.69283732,109890.0,109880.0,1.35403866]
[1747879109869,0.68373798,109890.0,109880.0,1.35403866]
[1747879110026,0.69283724,109890.0,109880.0,1.35403866]
[1747879110636,0.70193658,109890.0,109880.0,1.35392045]
[1747879112910,0.41077798,109890.0,109880.0,1.35392045]
[1747879113115,0.68373798,109890.0,109880.0,1.35392045]
[1747879113463,0.27545798,109890.0,109880.0,1.35392045]
[1747879113824,0.27545798,109890.0,109880.0,1.33040209]
[1747879114403,0.27545798,109890.0,109880.0,1.43897651]
[1747879114404,0.00249798,109890.0,109880.0,1.43897651]
[1747879114554,0.27545798,109890.0,109880.0,1.56936017]
[1747879114752,0.00249798,109890.0,109880.0,1.56936017]
[1747879115183,0.00249798,109890.0,109880.0,1.59492126]
[1747879115615,0.00049798,109890.0,109880.0,1.59492126]
[1747879115976,0.00049798,109890.0,109880.0,1.59692126]
[1747879116327,0.27296,109900.0,109890.0,0.54929919]
[1747879116521,0.40824,109910.0,109900.0,0.223821]
[1747879116730,0.6812,109910.0,109900.0,0.57862189]
[1747879116937,0.68134935,109910.0,109900.0,0.57862189]
[1747879118038,0.68134935,109910.0,109900.0,0.31785457]
[1747879118227,0.68134935,109910.0,109900.0,0.57862189]
[1747879118570,0.95459492,109910.0,109900.0,0.47038366]
[1747879118746,0.9636931,109910.0,109900.0,0.47038366]
[1747879118902,0.9636931,109910.0,109900.0,0.34]
[1747879119104,0.97279137,109910.0,109900.0,0.3591981]
[1747879119315,0.97279137,109910.0,109900.0,0.35009909]
[1747879119665,0.97279137,109910.0,109900.0,0.35919827]
[1747879120403,0.97279137,109910.0,109900.0,0.43675729]
[1747879120636,0.96369319,109910.0,109900.0,0.75822358]
[1747879120835,0.96369319,109910.0,109900.0,0.74912457]
[1747879121473,0.96369319,109910.0,109900.0,0.342]
[1747879121474,0.95459542,109910.0,109900.0,0.342]
[1747879121673,0.8815127,109910.0,109900.0,0.342]
[1747879123574,0.8815127,109910.0,109900.0,0.002]
[1747879128503,0.6085527,109910.0,109900.0,0.002]
[1747879128716,0.8815127,109910.0,109900.0,0.13238366]
[1747879128924,0.8815127,109910.0,109900.0,0.17962203]
[1747879129546,0.87241468,109910.0,109900.0,0.17962203]
[1747879131230,0.87241468,109910.0,109900.0,0.13238366]
[1747879131423,0.87241468,109910.0,109900.0,0.13138366]
[1747879131837,0.87241468,109910.0,109900.0,0.001]
[1747879132466,0.19108271,109900.0,109890.0,0.60487596]
[1747879133100,0.59784271,109900.0,109890.0,0.60487596]
[1747879133853,0.59784271,109900.0,109890.0,0.60587596]
[1747879134020,0.59784271,109900.0,109890.0,0.60687596]
[1747879134222,0.20018164,109900.0,109890.0,0.60687596]
[1747879134437,0.87990164,109900.0,109890.0,0.69789871]
[1747879134650,0.87990164,109900.0,109890.0,0.60687596]
[1747879136067,0.87080271,109900.0,109890.0,0.342]
[1747879137237,0.87080271,109900.0,109890.0,0.7502]
[1747879138039,0.86170362,109900.0,109890.0,0.7502]
[1747879138476,0.86170362,109900.0,109890.0,0.4102]
[1747879142805,0.86170362,109900.0,109890.0,0.4777076]
[1747879143265,0.18198362,109900.0,109890.0,0.33438356]
[1747879143465,0.19108222,109900.0,109890.0,0.86548358]
[1747879143674,0.87990098,109900.0,109890.0,0.86548358]
[1747879143885,0.87990098,109900.0,109890.0,0.86548366]
[1747879144095,0.87080222,109900.0,109890.0,0.86548366]
[1747879144318,0.67972,109900.0,109890.0,0.89278259]
[1747879144550,0.67972,109900.0,109890.0,0.89278268]
[1747879144762,0.67972,109900.0,109890.0,0.89278276]
[1747879144963,0.67972,109900.0,109890.0,0.90188227]
[1747879145171,0.68881843,109900.0,109890.0,0.89278235]
[1747879145382,0.87080205,109900.0,109890.0,0.89278235]
[1747879146242,0.40676,109900.0,109890.0,0.99591534]
[1747879146446,0.67972,109900.0,109890.0,1.01045619]
[1747879146648,0.87080213,109900.0,109890.0,0.9065504]
[1747879146866,0.87080213,109900.0,109890.0,0.9247495]
[1747879147079,0.87080213,109900.0,109890.0,0.93384892]
[1747879147292,0.87990073,109900.0,109890.0,0.90110914]
[1747879147431,0.87080213,109900.0,109890.0,0.91020865]
[1747879147646,0.87080213,109900.0,109890.0,1.01334164]
[1747879147849,0.87080213,109900.0,109890.0,0.72116716]
[1747879148152,0.87990073,109900.0,109890.0,1.0042423]
[1747879148366,0.88899949,109900.0,109890.0,0.89200955]
[1747879148569,0.88899949,109900.0,109890.0,0.90110931]
[1747879148968,0.89809833,109900.0,109890.0,0.90110931]
[1747879150980,0.89809833,109900.0,109890.0,0.91020898]
[1747879151191,0.89809833,109900.0,109890.0,0.90110931]
[1747879151384,0.89809833,109900.0,109890.0,0.70090953]
[1747879151663,0.89809833,109900.0,109890.0,0.81617549]
[1747879151808,0.88899949,109900.0,109890.0,0.80707582]
[1747879152237,0.88899949,109900.0,109890.0,1.22437549]
[1747879153062,0.87990073,109900.0,109890.0,1.22437549]
[1747879153264,0.88899949,109900.0,109890.0,1.22437549]
[1747879153768,0.88899949,109900.0,109890.0,1.31840906]
[1747879154074,0.88899949,109900.0,109890.0,1.0535331]
[1747879154602,0.88899949,109900.0,109890.0,1.31840906]
[1747879154846,0.88895949,109900.0,109890.0,1.31840906]
[1747879156039,0.88895941,109900.0,109890.0,1.31840906]
[1747879156697,0.67968,109900.0,109890.0,1.32750848]
[1747879157665,0.67968,109900.0,109890.0,1.1929893]
[1747879157666,0.68877851,109900.0,109890.0,1.1929893]
[1747879159526,0.67968,109900.0,109890.0,1.1929893]
[1747879162016,0.67968,109900.0,109890.0,0.7847893]
[1747879162438,0.68877851,109900.0,109890.0,0.7847893]
[1747879162688,0.67968,109900.0,109890.0,0.7847893]
[1747879162857,0.68877851,109900.0,109890.0,0.7847893]
[1747879163674,0.87986073,109900.0,109890.0,0.56039904]
[1747879163965,0.69787711,109900.0,109890.0,0.69985524]
[1747879164710,0.67968,109900.0,109890.0,0.69985524]
[1747879165086,0.00014935,109910.0,109900.0,0.53108263]
[1747879165284,0.00014935,109910.0,109900.0,0.67963685]
[1747879165485,0.40522935,109910.0,109900.0,1.01260162]
[1747879165722,0.67818935,109910.0,109900.0,1.01260162]
[1747879167228,0.67818935,109910.0,109900.0,1.42080162]
[1747879167771,0.67818935,109910.0,109900.0,1.42487815]
[1747879167973,0.67818935,109910.0,109900.0,1.42687815]
[1747879168618,0.00014935,109910.0,109900.0,1.42687815]
[1747879168775,0.27306935,109910.0,109900.0,1.42987815]
[1747879170656,0.45503641,109910.0,109900.0,1.04375804]
[1747879170860,0.55541293,109910.0,109900.0,1.07105507]
[1747879171077,0.55541293,109910.0,109900.0,0.76229901]
[1747879171078,0.5645112,109910.0,109900.0,0.76229901]
[1747879171312,0.55541285,109910.0,109900.0,0.95338156]
[1747879171626,0.55541285,109910.0,109900.0,1.21817165]
[1747879171823,0.56451103,109910.0,109900.0,1.30310629]
[1747879172067,0.56451103,109910.0,109900.0,1.31220522]
[1747879172281,0.56451103,109910.0,109900.0,1.04441513]
[1747879172678,0.49142831,109910.0,109900.0,1.04341513]
[1747879173093,0.49142831,109910.0,109900.0,1.04441513]
[1747879173398,0.47323195,109910.0,109900.0,1.30920522]
[1747879173806,0.48232997,109910.0,109900.0,1.31830398]
[1747879174212,0.48232997,109910.0,109900.0,1.10595352]
[1747879174375,0.48232997,109910.0,109900.0,0.97830406]
[1747879174793,0.48232997,109910.0,109900.0,0.98740282]
[1747879175839,0.4641341,109910.0,109900.0,0.9965015]
[1747879175990,0.4823298,109910.0,109900.0,0.98740274]
[1747879176197,0.4823298,109910.0,109900.0,1.32740282]
[1747879176403,0.4823298,109910.0,109900.0,1.3365015]
[1747879176879,0.4823298,109910.0,109900.0,1.32740282]
[1747879177453,0.4823298,109910.0,109900.0,1.31830406]
[1747879177952,0.4823298,109910.0,109900.0,1.32740282]
[1747879178111,0.4823298,109910.0,109900.0,1.31830406]
[1747879178515,0.4823298,109910.0,109900.0,1.32740274]
[1747879178713,0.4823298,109910.0,109900.0,1.32740282]
[1747879181012,0.28216704,109910.0,109900.0,1.32740282]
[1747879181228,0.29126489,109910.0,109900.0,1.3365015]
[1747879181577,0.47323195,109910.0,109900.0,1.3365015]
[1747879182542,0.47323195,109910.0,109900.0,1.12897405]
[1747879183647,0.28216704,109910.0,109900.0,1.12897364]
[1747879183843,0.29126489,109910.0,109900.0,1.12825741]
[1747879184186,0.27306935,109910.0,109900.0,1.12825741]
[1747879184387,0.67810935,109910.0,109900.0,1.64431569]
[1747879185046,0.00014935,109910.0,109900.0,1.64359961]
[1747879185246,0.27306935,109910.0,109900.0,1.64359961]
[1747879185406,0.27306935,109910.0,109900.0,1.37880952]
[1747879185595,0.27306935,109910.0,109900.0,1.64359961]
[1747879188383,0.35766776,109920.0,109910.0,0.56380197]
[1747879188551,0.6306784,109920.0,109910.0,1.0166592]
[1747879188956,0.6306784,109920.0,109910.0,1.68964929]
[1747879188957,0.27301064,109920.0,109910.0,1.68964929]
[1747879189971,0.27301064,109920.0,109910.0,1.4248592]
[1747879190504,0.27301064,109920.0,109910.0,1.4258592]
[1747879190742,0.27301064,109920.0,109910.0,1.4268592]
[1747879191798,0.27301064,109920.0,109910.0,1.42260983]
[1747879193529,0.27301064,109920.0,109910.0,1.42210983]
[1747879195297,0.27301064,109920.0,109910.0,1.29183947]
[1747879195697,0.27301064,109920.0,109910.0,1.42210983]
[1747879196800,0.27301064,109920.0,109910.0,1.16156911]
[1747879197008,0.27301064,109920.0,109910.0,1.29183947]
[1747879200044,0.27301064,109920.0,109910.0,1.16156911]
[1747879200270,0.27301064,109920.0,109910.0,1.29183947]
[1747879200498,0.28210758,109920.0,109910.0,1.16156911]
[1747879200715,0.28210758,109920.0,109910.0,1.29183947]
[1747879200716,0.27301064,109920.0,109910.0,1.29183947]
[1747879200926,0.67617064,109920.0,109910.0,1.42210983]
[1747879201140,0.67617064,109920.0,109910.0,1.43960983]
[1747879201351,9.064e-05,109920.0,109910.0,1.43960983]
[1747879201561,0.27297064,109920.0,109910.0,1.43960983]
[1747879202463,0.4032,109940.0,109930.0,0.21466695]
[1747879202680,0.67608,109940.0,109930.0,1.03290793]
[1747879202858,0.67608,109940.0,109930.0,1.05020793]
[1747879203317,0.07676349,109950.0,109940.0,0.5728404]
[1747879203529,0.07676349,109950.0,109940.0,0.94421469]